bitfinex/quotes_ETHUSD_20250413
["timestamp","ask_amount","ask_price","bid_price","bid_amount"]
[1744576516249,6.23957,1602.7,1602.5,0.12299566]
[1744576516567,16.37670968,1602.8,1602.3,0.8159]
[1744576516765,13.218,1602.8,1602.4,6.36335566]
[1744576517069,13.218,1602.8,1602.4,0.12299566]
[1744576517234,13.218,1602.8,1602.4,6.36354566]
[1744576517580,13.21802,1602.8,1602.5,0.12299566]
[1744576518052,6.9789,1602.8,1602.5,0.12299566]
[1744576518255,6.23986,1602.6,1602.5,0.12299566]
[1744576518456,6.23981,1602.7,1602.3,12.48178]
[1744576518775,6.23981,1602.7,1602.5,0.12299566]
[1744576518985,13.21803,1602.8,1602.5,6.24023]
[1744576519150,13.21803,1602.8,1602.3,7.00773]
[1744576519151,6.2396,1602.7,1602.3,7.00773]
[1744576519354,13.2181,1602.8,1602.4,6.36361566]
[1744576519660,13.21804,1602.8,1602.4,6.36360566]
[1744576519876,3.0,1602.7,1602.1,0.02]
[1744576520092,6.24141,1602.2,1602.1,0.02]
[1744576520291,6.17,1602.2,1602.1,0.02]
[1744576520654,12.88860997,1602.2,1602.1,0.02]
[1744576520979,15.41141,1602.2,1602.1,0.02]
[1744576521178,6.17,1602.0,1601.1,0.02]
[1744576521415,3.0,1601.7,1601.3,6.2449]
[1744576521560,6.24496,1601.3,1601.1,0.02]
[1744576521760,6.24531,1601.2,1601.1,0.02]
[1744576521994,3.0,1601.3,1601.1,0.02]
[1744576522204,9.17,1601.5,1601.1,6.2657]
[1744576522402,6.17,1601.8,1601.5,6.244]
[1744576522613,10.0027,1601.9,1601.3,6.24481]
[1744576522800,7.0027,1601.9,1601.4,0.06243735]
[1744576523107,6.17,1601.9,1601.7,6.24336]
[1744576523305,6.17,1601.9,1601.8,6.24297]
[1744576523507,7.0027,1602.4,1602.0,6.24198]
[1744576523657,7.0027,1602.4,1601.8,1.248633]
[1744576523658,6.17,1602.4,1601.8,1.248633]
[1744576523858,6.24453,1601.4,1601.1,0.02]
[1744576524158,6.24453,1601.4,1600.3,8.657]
[1744576524159,0.8327,1600.8,1600.1,6.26939]
[1744576524361,6.24862,1600.4,1600.1,0.02]
[1744576524609,7.55524883,1600.8,1600.2,6.24897]
[1744576524905,0.55,1600.7,1600.2,6.24897]
[1744576525075,3.0,1600.7,1600.3,6.24854]
[1744576525262,1.30830883,1600.8,1600.3,6.24848]
[1744576525457,10.55551883,1600.8,1600.1,6.33177692]
[1744576525708,0.7771,1601.1,1600.8,6.24681]
[1744576525888,7.02283,1601.1,1600.3,6.24882]
[1744576526093,7.02283,1601.1,1600.3,0.06247162]
[1744576526094,6.24758,1600.7,1600.3,0.06247162]
[1744576526259,6.24643,1601.0,1600.4,0.11986513]
[1744576526610,3.7771,1600.5,1600.1,0.02]
[1744576526758,0.7771,1600.5,1600.2,6.24888]
[1744576527073,0.7771,1600.8,1600.3,6.24847]
[1744576527273,7.02398,1600.8,1600.3,6.24847]
[1744576527601,6.24785,1600.6,1600.4,0.11986513]
[1744576527809,6.24785,1600.6,1600.1,0.02]
[1744576527810,0.7771,1600.6,1600.1,0.02]
[1744576528103,9.24819,1600.5,1600.2,0.11986513]
[1744576528404,9.24819,1600.5,1600.1,0.02]
[1744576528405,3.0,1600.5,1600.1,0.02]
[1744576528917,0.7771,1600.6,1600.3,6.24847]
[1744576529128,12.49434,1600.8,1600.2,6.24886]
[1744576529306,6.24687,1600.8,1600.2,6.31165982]
[1744576529511,3.7994,1600.9,1600.4,6.24823]
[1744576529823,6.24718,1600.8,1600.3,6.3110064]
[1744576530003,6.24718,1600.8,1600.2,6.24886]
[1744576530210,6.24921,1600.2,1600.1,0.02]
[1744576530409,12.41921,1600.2,1600.1,0.02]
[1744576530927,6.25181,1599.6,1599.4,0.55]
[1744576531107,6.25181,1599.6,1599.2,0.4049635]
[1744576531108,7.05213,1599.3,1599.2,0.4049635]
[1744576531419,7.05213,1599.3,1597.6,76.74853762]
[1744576531420,6.25703,1598.2,1597.6,9.26673085]
[1744576531626,12.7714,1598.7,1598.0,6.25773]
[1744576531807,7.75680677,1598.6,1598.1,0.680952]
[1744576531974,6.25675,1598.3,1598.1,0.680952]
[1744576532178,0.45984621,1598.3,1598.1,0.02]
[1744576532418,10.05643,1598.2,1598.1,0.02]
[1744576532814,0.7994,1598.7,1598.1,6.27731]
[1744576533021,0.7994,1598.7,1598.1,1.25360367]
[1744576533202,0.7994,1598.7,1598.3,6.25641]
[1744576533531,6.17,1599.0,1598.4,6.31860527]
[1744576533820,3.7618,1599.1,1598.9,6.25427]
[1744576533821,0.7618,1599.1,1598.9,6.25427]
[1744576534021,6.17,1599.6,1599.0,6.25371]
[1744576534022,6.9318,1599.6,1599.0,6.25371]
[1744576534229,6.94545,1599.5,1598.9,6.25428]
[1744576534405,6.9318,1599.6,1599.3,6.25272]
[1744576534611,8.977,1599.8,1599.4,6.25232]
[1744576534816,9.7388,1600.2,1599.6,6.2512]
[1744576535136,9.7388,1600.2,1599.2,6.25305]
[1744576535429,6.25078,1599.8,1599.3,6.25251]
[1744576535724,6.25039,1599.9,1599.5,6.25169]
[1744576536026,6.25016,1600.0,1599.5,6.25175]
[1744576536325,6.25096,1599.8,1599.6,0.61667234]
[1744576536507,6.25117,1599.7,1599.6,0.61667234]
[1744576536692,6.25117,1599.7,1599.1,6.2532]
[1744576536693,9.25159,1599.6,1599.1,6.2532]
[1744576537015,6.25293,1599.3,1598.7,6.25507]
[1744576537231,7.75680677,1599.4,1598.1,0.02]
[1744576537381,7.75680677,1599.4,1598.8,6.25468]
[1744576537382,0.77568068,1599.3,1598.8,6.25468]
[1744576537716,0.7618,1599.6,1599.1,6.25351]
[1744576538026,0.7618,1599.6,1598.8,7.04763]
[1744576538027,6.25256,1599.4,1598.8,7.04765]
[1744576538325,3.0,1599.6,1599.1,6.25315]
[1744576538525,3.0,1599.6,1598.9,0.06253511]
[1744576538526,3.925117,1599.7,1599.0,6.2539]
[1744576538689,12.42079,1599.8,1599.3,6.25254]
[1744576538883,63.3368,1599.9,1599.1,12.50655]
[1744576539124,69.58724,1599.9,1599.1,6.25321]
[1744576539325,6.25173,1599.6,1599.2,6.25294]
[1744576539920,9.17,1599.8,1599.3,6.25273]
[1744576540216,9.17,1599.8,1599.4,6.25234]
[1744576540420,9.17,1599.8,1599.0,6.2539]
[1744576540421,6.25117,1599.7,1599.0,6.2539]
[1744576540624,6.25117,1599.7,1599.2,6.25274]
[1744576540923,6.25165,1599.6,1599.2,6.25309]
[1744576541082,3.0,1599.8,1598.9,9.25426]
[1744576541286,3.0,1599.8,1598.9,6.25415]
[1744576541512,6.25257,1599.4,1599.0,6.2539]
[1744576541923,6.25288,1599.3,1598.9,6.25427]
[1744576542110,6.25415,1599.0,1598.5,7.04493]
[1744576542434,6.25415,1599.0,1598.2,0.7894]
[1744576542435,11.979,1598.9,1598.2,0.7894]
[1744576542728,0.7966,1598.7,1598.1,6.27741]
[1744576542889,0.7966,1598.7,1598.1,0.02]
[1744576542890,6.25629,1598.4,1598.1,0.02]
[1744576543089,12.51283,1598.4,1598.1,0.02]
[1744576543341,7.807573,1598.4,1598.1,0.02]
[1744576543488,6.25703,1598.2,1598.1,0.02]
[1744576544026,9.25703,1598.2,1598.1,0.02]
[1744576544229,10.61483,1598.2,1598.1,0.02]
[1744576544386,10.61483,1598.2,1597.6,0.4049635]
[1744576544387,6.25899,1597.7,1597.6,0.4049635]
[1744576544727,3.0,1597.8,1597.6,0.4049635]
[1744576544928,4.551283,1598.4,1598.1,6.25725]
[1744576545132,0.8078,1598.5,1597.6,7.4859035]
[1744576545325,6.25644,1598.4,1598.2,0.47542706]
[1744576545486,3.55,1598.7,1598.0,6.25758]
[1744576545487,3.0,1598.7,1598.3,6.25645]
[1744576545690,9.25538,1598.7,1598.3,6.81709001]
[1744576546030,6.25538,1598.7,1598.3,6.81709001]
[1744576546327,6.25614,1598.5,1598.3,0.56064001]
[1744576546499,6.25549,1598.6,1598.3,0.56064001]
[1744576546704,11.484978,1598.7,1598.2,6.25698]
[1744576546898,11.484978,1598.7,1598.2,6.25689]
[1744576547099,1.1484978,1598.6,1598.3,6.76732381]
[1744576547330,8.485128,1598.7,1598.3,0.51070381]
[1744576547490,8.485128,1598.7,1598.3,6.25648]
[1744576547686,2.229888,1598.7,1598.4,0.51120494]
[1744576547890,6.25586,1598.5,1598.4,0.51120494]
[1744576548114,6.25586,1598.5,1598.1,6.25725]
[1744576548115,6.25626,1598.4,1598.0,6.2578]
[1744576548395,6.2564,1598.4,1597.7,3.0]
[1744576548589,6.2564,1598.4,1598.0,6.2578]
[1744576548832,7.50701,1598.5,1598.1,6.76851494]
[1744576549128,1.25114,1598.5,1598.1,6.76851494]
[1744576549311,7.50718,1598.5,1598.1,6.76851494]
[1744576549501,1.25114,1598.5,1598.1,0.51120494]
[1744576549698,3.0,1598.7,1598.1,6.76847494]
[1744576549902,6.25609,1598.5,1598.1,6.25727]
[1744576550102,6.25547,1598.6,1598.2,6.76799494]
[1744576550500,12.51118,1598.6,1598.2,6.76799494]
[1744576550712,6.25593,1598.5,1598.2,1.30330494]
[1744576550911,6.17,1598.7,1598.2,1.30330494]
[1744576551112,6.9778,1598.8,1598.2,7.56016494]
[1744576551312,6.2553,1598.7,1598.3,6.25644]
[1744576551518,6.2553,1598.7,1598.3,6.76714381]
[1744576551691,6.25625,1598.4,1598.3,0.51070381]
[1744576551891,15.24125,1598.4,1598.3,0.51070381]
[1744576552121,6.25755,1598.1,1597.7,6.25887]
[1744576552308,20.391117,1598.4,1597.7,6.25899]
[1744576552620,8.985,1598.4,1598.1,6.25739]
[1744576553136,6.25571,1598.6,1598.2,6.7249234]
[1744576553434,6.25571,1598.6,1598.2,12.9817634]
[1744576554008,6.25571,1598.6,1598.2,6.7249234]
[1744576554335,6.25571,1598.6,1598.2,12.9818134]
[1744576554506,6.25571,1598.6,1598.2,12.9817534]
[1744576554692,6.25645,1598.4,1598.2,0.4681034]
[1744576554895,1.251085,1598.6,1598.3,6.25649]
[1744576555097,0.8078,1598.8,1598.3,6.25646]
[1744576555315,6.25508,1598.7,1597.7,0.7921]
[1744576555555,6.25643,1598.4,1598.1,6.25739]
[1744576555752,6.25526,1598.7,1597.7,7.05079]
[1744576556049,6.25611,1598.5,1597.8,0.4681034]
[1744576556223,0.625611,1598.4,1598.1,6.25722]
[1744576556436,6.882021,1598.4,1598.0,6.25769]
[1744576556627,0.625611,1598.4,1598.2,0.46449465]
[1744576556818,0.625611,1598.4,1598.1,6.25714]
[1744576557016,6.25559,1598.6,1598.2,6.72147465]
[1744576557229,6.25559,1598.6,1598.2,12.97834465]
[1744576557547,0.625415,1599.0,1598.7,6.25476]
[1744576557752,6.879345,1599.0,1598.7,6.25476]
[1744576558053,13.133475,1599.0,1598.8,0.46389333]
[1744576558229,7.5676375,1598.9,1598.8,0.46389333]
[1744576558416,7.5676375,1598.9,1598.5,12.51134]
[1744576558756,6.25744,1598.1,1597.7,6.25897]
[1744576558921,6.25706,1598.2,1597.8,6.25846]
[1744576559124,6.25801,1598.0,1597.6,12.9231635]
[1744576559353,12.51614,1598.0,1597.6,6.6639535]
[1744576559550,6.25821,1597.9,1597.6,6.6639535]
[1744576559750,3.7609,1598.1,1597.6,6.6642235]
[1744576559951,6.25899,1597.7,1597.1,0.025]
[1744576560154,6.26095,1597.2,1597.1,0.025]
[1744576560355,9.4449,1597.5,1597.1,0.025]
[1744576560728,6.26095,1597.2,1597.1,0.025]
[1744576560929,9.26095,1597.2,1597.1,0.025]
[1744576561130,54.4169,1597.5,1597.2,6.26092]
[1744576561332,54.4169,1597.5,1597.2,0.0709553]
[1744576561333,0.7609,1597.5,1597.2,0.0709553]
[1744576561530,7.02083,1597.5,1597.2,0.0709553]
[1744576562051,14.94535,1597.7,1597.3,6.26023]
[1744576562250,8.686,1597.7,1597.2,0.0709553]
[1744576562473,6.26056,1597.3,1597.2,0.0709553]
[1744576562797,10.02146,1597.3,1597.2,0.0709553]
[1744576562941,0.7609,1597.3,1597.2,0.0709553]
[1744576563338,0.7609,1597.7,1597.2,0.0709553]
[1744576563575,6.17,1598.1,1597.5,6.25978]
[1744576563739,0.7609,1598.2,1597.7,6.25883]
[1744576563943,0.7609,1598.2,1598.1,6.25743]
[1744576564186,13.18695,1598.5,1598.0,12.5154]
[1744576564347,6.25638,1598.4,1597.9,6.2581]
[1744576564677,6.25638,1598.4,1597.8,6.25821]
[1744576564678,6.2571,1598.2,1597.8,6.25821]
[1744576564880,6.25665,1598.3,1597.8,12.51667]
[1744576565047,6.25627,1598.4,1597.8,1.251667]
[1744576565381,6.25683,1598.3,1597.8,6.25822]
[1744576565575,6.25683,1598.3,1597.9,6.258]
[1744576565778,6.17,1598.4,1598.0,6.25776]
[1744576565779,12.42627,1598.4,1598.0,6.25776]
[1744576566169,12.42633,1598.4,1598.1,0.26183305]
[1744576566496,18.68294,1598.4,1598.1,0.26183305]
[1744576566789,8.114384,1598.4,1598.1,0.26183305]
[1744576566989,12.51394,1598.3,1597.9,6.25816]
[1744576567139,6.25689,1598.3,1598.0,0.26183305]
[1744576567345,6.2571,1598.2,1597.8,12.5168]
[1744576567540,6.2571,1598.2,1597.9,0.26183305]
[1744576567785,6.2571,1598.2,1597.8,6.25859]
[1744576568094,6.25669,1598.3,1597.9,6.51988305]
[1744576568496,6.25714,1598.2,1597.9,0.26183305]
[1744576568717,6.25669,1598.3,1597.9,6.51993305]
[1744576568884,6.25669,1598.3,1597.9,6.2581]
[1744576569059,6.25724,1598.2,1598.0,0.26183305]
[1744576569393,6.17,1598.4,1598.1,6.25734]
[1744576569697,6.17,1598.4,1597.3,14.94649]
[1744576569698,18.49369,1598.3,1597.3,14.94649]
[1744576569897,3.0,1598.1,1597.3,0.7565]
[1744576570057,6.25877,1597.8,1597.4,12.5201]
[1744576570264,15.033859,1598.2,1597.7,6.25865]
[1744576570465,6.17,1598.2,1597.9,6.25785]
[1744576570708,14.857,1598.3,1597.9,12.51586]
[1744576571006,6.17,1598.3,1598.0,6.25769]
[1744576571222,6.17,1598.3,1598.0,12.51537]
[1744576571507,12.4268,1598.3,1597.9,12.51593]
[1744576571709,0.7574,1598.5,1597.9,1.251593]
[1744576571878,6.17,1598.8,1598.7,6.25508]
[1744576572084,6.25478,1598.8,1598.4,6.25604]
[1744576572400,3.0,1599.1,1598.7,6.25503]
[1744576572573,6.25433,1598.9,1598.5,0.34595109]
[1744576572771,6.17,1599.2,1599.0,6.25377]
[1744576573083,6.25316,1599.2,1598.9,6.25424]
[1744576573277,13.18018,1599.3,1598.9,6.25405]
[1744576573493,12.42278,1599.3,1598.9,6.25405]
[1744576573690,12.42278,1599.3,1598.9,12.50812]
[1744576573901,6.17,1599.3,1599.0,6.2536]
[1744576574064,12.42288,1599.3,1598.9,6.25427]
[1744576574280,12.42288,1599.3,1598.9,12.50835]
[1744576574514,6.25119,1599.7,1599.3,6.2525]
[1744576574802,6.25184,1599.6,1599.2,0.7892]
[1744576575008,12.42118,1599.7,1599.3,6.25273]
[1744576575348,6.17,1599.7,1599.5,6.2519]
[1744576575653,6.25,1600.0,1599.6,6.25156]
[1744576575654,6.17,1600.0,1599.6,6.25156]
[1744576575952,6.17,1600.0,1599.2,7.04229]
[1744576575953,6.17,1600.1,1599.8,6.25067]
[1744576576246,7.04053,1600.2,1599.9,0.22475667]
[1744576576247,13.21072,1600.2,1599.9,0.22475667]
[1744576576555,0.704053,1600.1,1599.9,0.22475667]
[1744576576737,0.704053,1600.1,1599.8,6.25067]
[1744576577114,0.704053,1600.1,1599.5,14.9359]
[1744576577311,6.25029,1600.0,1599.9,0.22475667]
[1744576577632,7.7367343,1600.0,1599.9,0.17147295]
[1744576577831,6.25064,1599.9,1599.4,6.25215]
[1744576578023,6.25093,1599.8,1599.5,0.17147295]
[1744576578408,0.6954343,1600.0,1599.5,0.17147295]
[1744576578722,12.41925,1600.2,1599.8,6.25053]
[1744576578910,6.24961,1600.1,1599.8,6.25053]
[1744576579110,6.24961,1600.1,1599.7,7.02334]
[1744576579353,6.24961,1600.1,1599.9,0.17445719]
[1744576579505,6.24961,1600.1,1599.7,13.27415]
[1744576579707,7.499496,1600.1,1600.0,0.17445719]
[1744576579947,7.499496,1600.1,1599.7,13.27415]
[1744576580163,7.499496,1600.1,1600.0,0.17445719]
[1744576580314,13.749436,1600.1,1599.7,7.02312]
[1744576580870,7.499496,1600.1,1599.8,0.17445719]
[1744576581159,1.249886,1600.1,1599.8,6.42519719]
[1744576581506,7.499506,1600.1,1599.8,0.17445719]
[1744576581749,1.249886,1600.1,1599.8,0.17445719]
[1744576581946,7.499526,1600.1,1599.8,0.17445719]
[1744576582171,13.749506,1600.1,1599.8,0.17445719]
[1744576582316,12.43863,1600.4,1600.0,6.24995]
[1744576582512,12.43863,1600.4,1598.8,0.7722]
[1744576582513,7.00938,1599.8,1598.8,0.7722]
[1744576582739,6.25461,1598.9,1598.5,7.02803]
[1744576583065,0.7586,1599.3,1598.5,7.02803]
[1744576583066,7.07384728,1599.3,1598.5,0.7722]
[1744576583215,0.70738473,1599.2,1598.5,0.7722]
[1744576583415,6.25434,1598.9,1598.5,13.28339]
[1744576583611,0.06249728,1599.1,1598.7,6.25506]
[1744576583612,6.31601728,1599.1,1598.7,6.25506]
[1744576583851,6.31601728,1599.1,1598.7,6.25487]
[1744576584052,6.25438,1598.9,1598.5,0.7722]
[1744576584345,6.25438,1598.9,1597.8,14.17115205]
[1744576584346,0.06249728,1599.1,1598.2,8.681]
[1744576584547,6.25269,1599.4,1598.9,6.25397]
[1744576584758,9.31475728,1599.5,1599.1,6.25336]
[1744576585049,8.681,1599.6,1599.3,6.25255]
[1744576585221,10.23671428,1599.6,1599.1,0.8031]
[1744576585430,1.55571428,1599.6,1599.2,6.25275]
[1744576585635,0.06249728,1599.6,1599.2,12.50567]
[1744576585939,15.7142,1599.9,1599.4,6.25205]
[1744576586255,14.9317,1599.9,1599.5,12.50366]
[1744576586450,7.03175,1600.2,1599.8,6.25061]
[1744576586642,7.01531228,1600.1,1599.7,6.25096]
[1744576586841,7.01531228,1600.1,1599.7,12.50194]
[1744576587052,6.25096,1599.8,1599.5,0.8031]
[1744576587353,6.25096,1599.8,1599.4,6.25216]
[1744576587543,6.25096,1599.8,1599.4,12.5043]
[1744576587747,0.625096,1599.7,1599.4,6.25214]
[1744576588046,0.625096,1599.7,1599.4,6.25218]
[1744576588558,0.625096,1599.7,1599.2,0.8031]
[1744576588857,0.06249728,1600.0,1599.6,6.25138]
[1744576589053,6.31270728,1600.0,1599.6,6.25138]
[1744576589226,6.31270728,1600.0,1599.5,6.25189]
[1744576589432,6.25021,1600.0,1599.5,12.50378]
[1744576589753,6.27948941,1600.0,1599.6,6.25154]
[1744576589960,1.35260185,1600.0,1599.3,6.2525]
[1744576590254,6.25047,1599.9,1599.4,6.25219]
[1744576590452,6.28034941,1599.8,1599.4,6.25219]
[1744576590653,6.28034941,1599.8,1599.3,12.50542]
[1744576590830,6.25121,1599.7,1599.4,6.25233]
[1744576591222,6.28034941,1599.8,1599.4,12.50466]
[1744576591455,6.25041,1599.9,1599.5,6.25181]
[1744576591754,6.25041,1599.9,1599.5,12.50362]
[1744576591917,7.50338894,1599.9,1599.5,12.50362]
[1744576592117,13.75405894,1599.9,1599.5,6.25181]
[1744576592354,13.75401894,1599.9,1599.5,6.25175]
[1744576592531,1.25297894,1599.9,1599.6,6.25152]
[1744576592866,6.27939941,1600.0,1599.6,6.25144]
[1744576593052,6.25045,1599.9,1599.5,6.25188]
[1744576593260,12.50115,1599.9,1599.5,6.25188]
[1744576593556,6.25045,1599.9,1599.5,12.50369]
[1744576593761,6.2517,1599.6,1599.2,7.056]
[1744576593967,58.96217618,1599.5,1597.9,0.8031]
[1744576594168,6.25813,1598.0,1597.5,6.25973]
[1744576594371,3.0,1598.3,1597.3,0.8031]
[1744576594523,7.06891941,1598.2,1597.5,6.25974]
[1744576594727,12.51693,1597.9,1597.5,6.25974]
[1744576594927,12.51599,1598.0,1597.5,12.51931]
[1744576595153,13.77052594,1598.0,1597.5,12.51914]
[1744576595543,1.25453594,1598.0,1597.4,7.91274205]
[1744576595739,1.25453594,1598.0,1597.6,6.25931]
[1744576595740,6.25799,1598.0,1597.6,6.25931]
[1744576595944,14.99246,1598.4,1598.0,6.25781]
[1744576596144,6.28602941,1598.3,1597.9,6.32075524]
[1744576596866,6.28602941,1598.3,1597.9,12.57870524]
[1744576597437,6.28602941,1598.3,1597.9,6.32052524]
[1744576597636,8.46056215,1598.3,1597.9,6.25795]
[1744576597837,2.20390215,1598.3,1597.6,6.2593]
[1744576598146,6.25707,1598.2,1597.5,8.736]
[1744576598366,6.25707,1598.2,1597.8,6.25843]
[1744576598740,6.28606941,1598.3,1597.9,6.2582]
[1744576599145,0.02936941,1598.3,1597.9,6.2582]
[1744576599765,0.02936941,1598.3,1597.9,12.51624]
[1744576599972,1.33031815,1598.3,1597.9,12.51624]
[1744576600135,1.33031815,1598.3,1597.9,12.51606]
[1744576600336,1.33031815,1598.3,1597.9,12.51604]
[1744576600551,1.33031815,1598.3,1598.0,6.25778]
[1744576601375,7.58697815,1598.3,1598.0,6.25778]
[1744576601866,9.5235,1598.5,1598.2,6.25703]
[1744576602075,8.77036941,1598.5,1598.3,6.25646]
[1744576602257,0.7704,1598.8,1598.5,6.25564]
[1744576602433,0.02936941,1598.8,1598.1,0.7876]
[1744576602634,6.25546,1598.7,1598.3,6.25663]
[1744576602834,6.25546,1598.7,1598.3,6.25642]
[1744576602835,0.625546,1598.6,1598.3,6.25642]
[1744576603030,0.625546,1598.6,1598.4,6.39594885]
[1744576605235,15.6814,1598.9,1598.6,6.25547]
[1744576605479,0.02936941,1598.8,1598.5,6.25581]
[1744576605661,0.02936941,1598.8,1598.4,6.25606]
[1744576605662,6.2551,1598.7,1598.4,6.25606]
[1744576605974,6.2534,1599.2,1598.5,6.25586]
[1744576605975,0.7628,1599.2,1598.5,6.25586]
[1744576606138,6.25443,1598.9,1598.5,6.25579]
[1744576606342,0.65481241,1598.8,1598.5,12.51147]
[1744576606639,11.741,1599.3,1598.5,12.51147]
[1744576606640,12.14870762,1599.4,1599.0,6.25356]
[1744576606947,0.02936941,1599.4,1599.1,6.25349]
[1744576607148,13.26737,1599.5,1598.8,6.25467]
[1744576607149,0.7628,1599.5,1598.8,6.25467]
[1744576607378,0.7628,1599.5,1599.2,6.25289]
[1744576607849,0.02936941,1599.5,1599.3,6.25273]
[1744576608050,0.69062694,1599.5,1599.2,6.25293]
[1744576608251,6.94276694,1599.5,1599.1,6.25345]
[1744576608450,6.94276694,1599.5,1599.2,6.25301]
[1744576608874,6.94276694,1599.5,1599.3,0.13970885]
[1744576609371,0.71999635,1599.5,1599.3,0.13970885]
[1744576609676,1.18486075,1599.5,1598.9,6.25423]
[1744576609881,4.18486075,1599.5,1598.7,6.25508]
[1744576610049,6.25365,1599.1,1599.0,0.12628285]
[1744576610381,3.02936941,1599.3,1598.7,6.25508]
[1744576610543,3.02936941,1599.3,1598.6,0.7995]
[1744576610544,0.02936941,1599.3,1599.1,6.25334]
[1744576610755,0.02936941,1599.4,1599.3,6.25273]
[1744576610938,0.7816,1599.7,1599.5,6.25188]
[1744576611138,0.70617494,1599.7,1599.6,6.25156]
[1744576611383,6.27981941,1599.9,1599.6,6.37784285]
[1744576611696,6.25117,1599.7,1599.6,0.12628285]
[1744576611858,6.28053941,1599.7,1599.6,0.12628285]
[1744576612205,6.28053941,1599.7,1598.7,0.7577]
[1744576612206,0.7816,1600.0,1599.7,6.25117]
[1744576612354,0.81096941,1600.0,1599.7,6.25117]
[1744576612549,15.77059,1600.3,1599.9,6.25012]
[1744576612779,6.27869941,1600.2,1599.9,6.25012]
[1744576613081,6.27869941,1600.2,1600.0,0.12628285]
[1744576613290,6.24995,1600.1,1600.0,0.12628285]
[1744576613662,6.24995,1600.1,1599.7,6.25096]
[1744576613867,0.65436441,1600.0,1599.8,0.12628285]
[1744576614181,0.624995,1600.0,1599.8,0.12628285]
[1744576614389,12.52906941,1600.1,1599.7,6.25103]
[1744576614548,12.52906941,1600.1,1599.8,0.12499187]
[1744576614884,0.02936941,1600.1,1599.8,0.12499187]
[1744576615083,6.27902941,1600.1,1599.8,6.37558187]
[1744576615286,0.02936941,1600.1,1599.8,6.25059]
[1744576615458,0.02936941,1600.1,1599.9,0.12499187]
[1744576615459,0.70476133,1600.1,1599.9,0.12499187]
[1744576615658,0.70476133,1600.1,1599.8,6.25057]
[1744576615859,0.70476133,1600.1,1599.9,0.12499187]
[1744576616257,6.95456133,1600.1,1599.7,12.50197]
[1744576616455,0.70476133,1600.1,1599.8,6.37562187]
[1744576616659,6.75391916,1600.2,1599.8,6.37562187]
[1744576616999,6.75391916,1600.2,1599.9,6.25029]
[1744576617359,6.75391916,1600.2,1600.0,0.12499187]
[1744576617587,0.50468916,1600.2,1600.0,6.37496187]
[1744576617797,6.72465975,1600.2,1600.0,0.12499187]
[1744576618093,1.88315108,1600.2,1600.0,0.12499187]
[1744576618291,0.47531975,1600.2,1600.0,0.12499187]
[1744576618464,7.05995941,1600.3,1600.0,0.12499187]
[1744576618662,7.05995941,1600.3,1599.9,12.50041]
[1744576618862,7.05995941,1600.3,1599.9,12.50036]
[1744576619065,7.05995941,1600.3,1599.9,12.50044]
[1744576619274,14.64188035,1600.3,1600.0,0.12499187]
[1744576619624,6.24924,1600.2,1600.0,0.12499187]
[1744576620573,6.27864941,1600.2,1600.0,0.12499187]
[1744576620773,0.02936941,1600.2,1600.0,0.12499187]
[1744576621122,0.02936941,1600.2,1599.6,6.25154]
[1744576621123,3.0,1599.9,1599.1,0.7593]
[1744576621267,0.7651,1599.6,1599.0,6.25382]
[1744576621465,6.25288,1599.3,1598.9,6.25417]
[1744576621670,6.25352,1599.1,1598.8,6.25463]
[1744576621868,6.28264941,1599.2,1598.8,12.50926]
[1744576622125,6.25355,1599.1,1598.8,6.25463]
[1744576622264,0.02936941,1599.3,1599.2,6.25312]
[1744576622470,6.96446941,1599.6,1599.2,6.2531]
[1744576622717,6.96446941,1599.6,1599.0,0.7593]
[1744576622871,6.25091,1599.8,1599.5,6.25167]
[1744576623071,0.02936941,1599.7,1599.5,6.25167]
[1744576623309,0.02936941,1599.8,1599.4,6.25229]
[1744576623614,0.02936941,1599.8,1599.0,0.7593]
[1744576623615,6.25169,1599.6,1599.3,6.25271]
[1744576623984,6.25169,1599.6,1599.2,12.50622]
[1744576624179,6.25169,1599.6,1599.2,6.25311]
[1744576624407,6.25203,1599.5,1599.2,6.25311]
[1744576624628,6.28175941,1599.4,1599.0,7.01303]
[1744576624981,6.25239,1599.4,1599.0,7.01303]
[1744576625181,0.02936941,1599.6,1599.3,6.25255]
[1744576625505,1.2331704,1599.9,1599.4,0.06252184]
[1744576625683,7.04489941,1599.9,1599.6,6.25137]
[1744576625890,6.27979941,1599.9,1599.6,6.25137]
[1744576626103,6.25081,1599.8,1599.5,6.25195]
[1744576626488,7.06268,1600.1,1599.7,6.25081]
[1744576626717,1.33284094,1600.3,1599.8,6.25072]
[1744576627036,6.27879941,1600.2,1599.8,6.25072]
[1744576627396,6.27879941,1600.2,1599.7,6.25112]
[1744576627397,0.02936941,1600.2,1599.9,6.25004]
[1744576627642,6.27821941,1600.3,1599.9,6.25007]
[1744576627810,12.52733941,1600.3,1599.9,6.25007]
[1744576627994,6.24934,1600.2,1599.9,6.25007]
[1744576628390,0.02,1600.4,1600.2,6.24921]
[1744576628638,0.02,1600.4,1600.2,6.24908]
[1744576628836,0.02,1600.4,1600.2,12.49816]
[1744576629209,0.02,1600.4,1600.3,6.31130527]
[1744576629435,0.02,1600.4,1600.3,7.50485853]
[1744576629640,0.02,1600.4,1600.3,6.31129673]
[1744576629946,0.02,1600.4,1600.3,6.24882]
[1744576630096,0.02,1600.4,1600.3,7.00042]
[1744576630485,0.02,1600.4,1600.3,15.66342]
[1744576631005,6.17,1601.1,1600.6,6.24747]
[1744576631230,4.58303613,1601.2,1600.8,6.24683]
[1744576631553,0.02936941,1601.2,1600.9,6.24625]
[1744576631707,0.02,1601.4,1600.5,6.24804]